[Event "Titled Tuesday Blitz November 2 2021"]
[White "Narayanan.S.L"]
[Black "Meduri, Aakaash"]
[WhiteFideId "5058422"]
[BlackFideId "2032252"]
[WhiteElo "2570"]
[BlackElo "2047"]
[Result "1-0"]
[Round "01"]
[TimeControl "180+1"]
[Date "2021.11.02"]
[WhiteClock "0:02:16"]
[BlackClock "0:01:13"]

1. b3 {[%clk 0:02:54]}  d6 {[%clk 0:02:55]} 2. Bb2 {[%clk 0:02:55]}  e5 {[%clk 0:02:55]} 3. d4 {[%clk 0:02:55]}  Nc6 {[%clk 0:02:53]} 4. dxe5 {[%clk 0:02:55]}  Nxe5 {[%clk 0:02:53]} 5. Nf3 {[%clk 0:02:55]}  Nxf3+ {[%clk 0:02:52]} 6. gxf3 {[%clk 0:02:55]}  Nf6 {[%clk 0:02:52]} 7. Nc3 {[%clk 0:02:55]}  Be7 {[%clk 0:02:52]} 8. Rg1 {[%clk 0:02:54]}  O-O {[%clk 0:02:48]} 9. Nd5 {[%clk 0:02:49]}  c6 {[%clk 0:02:44]} 10. Nxe7+ {[%clk 0:02:48]}  Qxe7 {[%clk 0:02:45]} 11. Qd4 {[%clk 0:02:47]}  Kh8 {[%clk 0:02:38]} 12. O-O-O {[%clk 0:02:46]}  Rd8 {[%clk 0:02:31]} 13. e3 {[%clk 0:02:43]}  Bf5 {[%clk 0:02:28]} 14. Bd3 {[%clk 0:02:35]}  Bg6 {[%clk 0:02:22]} 15. f4 {[%clk 0:02:34]}  Rd7 {[%clk 0:02:14]} 16. f5 {[%clk 0:02:27]}  Bh5 {[%clk 0:02:13]} 17. Rde1 {[%clk 0:02:27]}  Rg8 {[%clk 0:01:46]} 18. Qh4 {[%clk 0:02:26]}  Bf3 {[%clk 0:01:44]} 19. Rg3 {[%clk 0:02:17]}  Be4 {[%clk 0:01:21]} 20. Reg1 {[%clk 0:02:15]}  Bxd3 {[%clk 0:01:19]} 21. Bxf6 {[%clk 0:02:15]}  Qe4 {[%clk 0:01:13]} 22. Qxh7+ {[%clk 0:02:15]}  Kxh7 {[%clk 0:01:12]} 23. Rh3+ {[%clk 0:02:16]}  Qh4 {[%clk 0:01:13]} 24. Rxh4# {[%clk 0:02:16]} 1-0


[Site "https://www.chess.com"]

[Event "Titled Tuesday Blitz November 2 2021"]
[White "Ozates, Tuna"]
[Black "Siva Mahadevan"]
[WhiteFideId "6354521"]
[BlackFideId "25043153"]
[WhiteElo "1872"]
[BlackElo "2203"]
[Result "0-1"]
[Round "01"]
[TimeControl "180+1"]
[Date "2021.11.02"]
[WhiteClock "0:01:30"]
[BlackClock "0:00:54"]

1. e4 {[%clk 0:02:57]}  c5 {[%clk 0:02:59]} 2. Nf3 {[%clk 0:02:57]}  Nc6 {[%clk 0:03:00]} 3. Bb5 {[%clk 0:02:57]}  Na5 {[%clk 0:03:00]} 4. O-O {[%clk 0:02:56]}  a6 {[%clk 0:03:01]} 5. Be2 {[%clk 0:02:57]}  b5 {[%clk 0:03:02]} 6. c3 {[%clk 0:02:57]}  Bb7 {[%clk 0:03:02]} 7. d3 {[%clk 0:02:57]}  e6 {[%clk 0:03:02]} 8. a3 {[%clk 0:02:58]}  Nf6 {[%clk 0:03:00]} 9. Bg5 {[%clk 0:02:58]}  c4 {[%clk 0:02:57]} 10. e5 {[%clk 0:02:57]}  h6 {[%clk 0:02:57]} 11. Bxf6 {[%clk 0:02:55]}  gxf6 {[%clk 0:02:57]} 12. d4 {[%clk 0:02:55]}  Rg8 {[%clk 0:02:57]} 13. Nbd2 {[%clk 0:02:54]}  fxe5 {[%clk 0:02:56]} 14. dxe5 {[%clk 0:02:55]}  Nc6 {[%clk 0:02:55]} 15. Ne4 {[%clk 0:02:53]}  Nxe5 {[%clk 0:02:52]} 16. Nxe5 {[%clk 0:02:45]}  Bxe4 {[%clk 0:02:52]} 17. Bf3 {[%clk 0:02:46]}  d5 {[%clk 0:02:32]} 18. Bxe4 {[%clk 0:02:34]}  dxe4 {[%clk 0:02:33]} 19. Qh5 {[%clk 0:02:35]}  Qf6 {[%clk 0:02:33]} 20. f4 {[%clk 0:02:28]}  O-O-O {[%clk 0:02:01]} 21. Rae1 {[%clk 0:02:23]}  Rd2 {[%clk 0:01:52]} 22. g3 {[%clk 0:02:22]}  Qf5 {[%clk 0:01:30]} 23. Qh4 {[%clk 0:01:55]}  f6 {[%clk 0:01:21]} 24. Nc6 {[%clk 0:01:48]}  Bc5+ {[%clk 0:01:07]} 25. Kh1 {[%clk 0:01:46]}  e3 {[%clk 0:01:05]} 26. Rxe3 {[%clk 0:01:37]}  Qd5+ {[%clk 0:01:04]} 27. Ref3 {[%clk 0:01:38]}  Qxc6 {[%clk 0:01:03]} 28. Qxf6 {[%clk 0:01:38]}  Rgd8 {[%clk 0:00:59]} 29. f5 {[%clk 0:01:37]}  Rxb2 {[%clk 0:00:56]} 30. fxe6 {[%clk 0:01:36]}  Rdd2 {[%clk 0:00:55]} 31. Qh8+ {[%clk 0:01:34]}  Kb7 {[%clk 0:00:56]} 32. Qxh6 {[%clk 0:01:30]}  Qxf3+ {[%clk 0:00:54]} 0-1


[Site "https://www.chess.com"]

[Event "Titled Tuesday Blitz November 2 2021"]
[White "Ronka, Erik"]
[Black "Naroditsky, Daniel"]
[WhiteFideId "505080"]
[BlackFideId "2026961"]
[WhiteElo "2264"]
[BlackElo "2608"]
[Result "0-1"]
[Round "01"]
[TimeControl "180+1"]
[Date "2021.11.02"]
[WhiteClock "0:00:03"]
[BlackClock "0:00:17"]

1. d4 {[%clk 0:03:00]}  Nf6 {[%clk 0:03:00]} 2. Nf3 {[%clk 0:02:59]}  g6 {[%clk 0:03:00]} 3. g3 {[%clk 0:03:00]}  Bg7 {[%clk 0:03:00]} 4. Bg2 {[%clk 0:03:00]}  O-O {[%clk 0:03:01]} 5. O-O {[%clk 0:03:01]}  d6 {[%clk 0:03:02]} 6. b3 {[%clk 0:03:01]}  c5 {[%clk 0:03:01]} 7. Bb2 {[%clk 0:03:01]}  cxd4 {[%clk 0:03:02]} 8. Nxd4 {[%clk 0:03:01]}  d5 {[%clk 0:03:03]} 9. c4 {[%clk 0:03:00]}  dxc4 {[%clk 0:03:04]} 10. bxc4 {[%clk 0:03:01]}  Nc6 {[%clk 0:03:04]} 11. e3 {[%clk 0:02:44]}  Qc7 {[%clk 0:02:50]} 12. Nd2 {[%clk 0:02:25]}  Rd8 {[%clk 0:02:49]} 13. Qc2 {[%clk 0:02:13]}  Bd7 {[%clk 0:02:34]} 14. Rab1 {[%clk 0:02:07]}  Rac8 {[%clk 0:02:33]} 15. Rfc1 {[%clk 0:02:06]}  Nxd4 {[%clk 0:02:15]} 16. Bxd4 {[%clk 0:01:47]}  Bf5 {[%clk 0:02:15]} 17. Ne4 {[%clk 0:01:29]}  b6 {[%clk 0:02:09]} 18. Nxf6+ {[%clk 0:01:20]}  Bxf6 {[%clk 0:01:56]} 19. Be4 {[%clk 0:01:21]}  Bxd4 {[%clk 0:01:55]} 20. exd4 {[%clk 0:01:06]}  Rxd4 {[%clk 0:01:44]} 21. Bxf5 {[%clk 0:01:05]}  gxf5 {[%clk 0:01:45]} 22. Qxf5 {[%clk 0:01:04]}  Qc5 {[%clk 0:01:46]} 23. Qf3 {[%clk 0:00:36]}  Rxc4 {[%clk 0:01:40]} 24. Rxc4 {[%clk 0:00:37]}  Qxc4 {[%clk 0:01:40]} 25. Rd1 {[%clk 0:00:27]}  Qe6 {[%clk 0:01:29]} 26. h4 {[%clk 0:00:19]}  Kg7 {[%clk 0:01:26]} 27. Rd4 {[%clk 0:00:18]}  Rc1+ {[%clk 0:01:24]} 28. Kh2 {[%clk 0:00:18]}  f6 {[%clk 0:01:01]} 29. Rg4+ {[%clk 0:00:18]}  Kf7 {[%clk 0:01:02]} 30. Rf4 {[%clk 0:00:18]}  Qc6 {[%clk 0:00:57]} 31. Qh5+ {[%clk 0:00:18]}  Kf8 {[%clk 0:00:57]} 32. Qh6+ {[%clk 0:00:18]}  Ke8 {[%clk 0:00:58]} 33. Qh5+ {[%clk 0:00:16]}  Kd8 {[%clk 0:00:57]} 34. Rd4+ {[%clk 0:00:15]}  Kc7 {[%clk 0:00:58]} 35. Kh3 {[%clk 0:00:05]}  Rh1+ {[%clk 0:00:39]} 36. Kg4 {[%clk 0:00:05]}  Qe6+ {[%clk 0:00:39]} 37. Kf3 {[%clk 0:00:04]}  Qc6+ {[%clk 0:00:37]} 38. Kg4 {[%clk 0:00:03]}  Qc5 {[%clk 0:00:32]} 39. Rf4 {[%clk 0:00:04]}  Qc2 {[%clk 0:00:21]} 40. Qf7 {[%clk 0:00:03]}  Qg6+ {[%clk 0:00:17]} 41. Qxg6 {[%clk 0:00:02]}  hxg6 {[%clk 0:00:18]} 42. Re4 {[%clk 0:00:03]}  f5+ {[%clk 0:00:17]} 0-1


[Site "https://www.chess.com"]

[Event "Titled Tuesday Blitz November 2 2021"]
[White "Sanal, Vahap"]
[Black "Adewumi, Tanitoluwa"]
[WhiteFideId "6300545"]
[BlackFideId "30966396"]
[WhiteElo "2492"]
[BlackElo "2473"]
[Result "1-0"]
[Round "01"]
[TimeControl "180+1"]
[Date "2021.11.02"]
[WhiteClock "0:01:48"]
[BlackClock "0:00:47"]

1. e4 {[%clk 0:03:00]}  e5 {[%clk 0:02:52]} 2. Nf3 {[%clk 0:03:00]}  Nc6 {[%clk 0:02:45]} 3. Bb5 {[%clk 0:03:00]}  Nf6 {[%clk 0:02:44]} 4. O-O {[%clk 0:02:58]}  Nxe4 {[%clk 0:02:44]} 5. Re1 {[%clk 0:02:57]}  Nd6 {[%clk 0:02:45]} 6. Nxe5 {[%clk 0:02:58]}  Nxe5 {[%clk 0:02:45]} 7. Rxe5+ {[%clk 0:02:58]}  Be7 {[%clk 0:02:45]} 8. Bf1 {[%clk 0:02:58]}  O-O {[%clk 0:02:45]} 9. d4 {[%clk 0:02:59]}  Bf6 {[%clk 0:02:46]} 10. Bd3 {[%clk 0:02:58]}  Re8 {[%clk 0:02:41]} 11. Bf4 {[%clk 0:02:57]}  c6 {[%clk 0:02:24]} 12. Nc3 {[%clk 0:02:49]}  Bxe5 {[%clk 0:02:16]} 13. dxe5 {[%clk 0:02:49]}  Nb5 {[%clk 0:02:15]} 14. Ne4 {[%clk 0:02:49]}  d5 {[%clk 0:02:08]} 15. Nf6+ {[%clk 0:02:20]}  gxf6 {[%clk 0:01:59]} 16. Qh5 {[%clk 0:02:20]}  fxe5 {[%clk 0:01:12]} 17. Qxh7+ {[%clk 0:02:17]}  Kf8 {[%clk 0:01:12]} 18. Bh6+ {[%clk 0:02:18]}  Ke7 {[%clk 0:01:11]} 19. Bg5+ {[%clk 0:02:18]}  Ke6 {[%clk 0:01:08]} 20. Bxd8 {[%clk 0:02:00]}  Rxd8 {[%clk 0:01:09]} 21. Qf5+ {[%clk 0:02:01]}  Ke7 {[%clk 0:01:09]} 22. Qxe5+ {[%clk 0:01:58]}  Be6 {[%clk 0:01:10]} 23. Re1 {[%clk 0:01:53]}  Re8 {[%clk 0:00:46]} 24. Bxb5 {[%clk 0:01:50]}  cxb5 {[%clk 0:00:47]} 25. f4 {[%clk 0:01:48]}  Kd7 {[%clk 0:00:47]} 1-0


[Site "https://www.chess.com"]

[Event "Titled Tuesday Blitz November 2 2021"]
[White "Stevens, Christian"]
[Black "Bluebaum, Matthias"]
[WhiteFideId "2604450"]
[BlackFideId "24651516"]
[WhiteElo "2464"]
[BlackElo "2681"]
[Result "0-1"]
[Round "01"]
[TimeControl "180+1"]
[Date "2021.11.02"]
[WhiteClock "0:00:00"]
[BlackClock "0:01:23"]

1. e4 {[%clk 0:02:59]}  e6 {[%clk 0:02:58]} 2. d4 {[%clk 0:02:57]}  d5 {[%clk 0:02:58]} 3. Nc3 {[%clk 0:02:43]}  Nf6 {[%clk 0:02:58]} 4. e5 {[%clk 0:02:43]}  Nfd7 {[%clk 0:02:58]} 5. f4 {[%clk 0:02:43]}  c5 {[%clk 0:02:59]} 6. Nf3 {[%clk 0:02:42]}  Nc6 {[%clk 0:02:59]} 7. Be3 {[%clk 0:02:41]}  a6 {[%clk 0:02:59]} 8. Qd2 {[%clk 0:02:39]}  b5 {[%clk 0:02:59]} 9. Be2 {[%clk 0:02:35]}  Be7 {[%clk 0:02:58]} 10. O-O {[%clk 0:02:30]}  O-O {[%clk 0:02:54]} 11. Kh1 {[%clk 0:02:28]}  Bb7 {[%clk 0:02:52]} 12. Nd1 {[%clk 0:02:26]}  b4 {[%clk 0:02:51]} 13. Nf2 {[%clk 0:02:22]}  a5 {[%clk 0:02:50]} 14. c3 {[%clk 0:01:58]}  bxc3 {[%clk 0:02:40]} 15. bxc3 {[%clk 0:01:56]}  Nb6 {[%clk 0:02:41]} 16. dxc5 {[%clk 0:01:49]}  Nc4 {[%clk 0:02:35]} 17. Bxc4 {[%clk 0:01:47]}  dxc4 {[%clk 0:02:36]} 18. Qxd8 {[%clk 0:01:21]}  Rfxd8 {[%clk 0:02:37]} 19. Nd4 {[%clk 0:01:21]}  Na7 {[%clk 0:02:24]} 20. Rab1 {[%clk 0:01:17]}  Bd5 {[%clk 0:02:24]} 21. Nb5 {[%clk 0:01:13]}  Nxb5 {[%clk 0:02:22]} 22. Rxb5 {[%clk 0:01:13]}  Bc6 {[%clk 0:02:21]} 23. Rb6 {[%clk 0:01:13]}  Rac8 {[%clk 0:02:22]} 24. Bd4 {[%clk 0:01:09]}  h6 {[%clk 0:02:20]} 25. Ng4 {[%clk 0:01:07]}  Be4 {[%clk 0:02:18]} 26. Rb5 {[%clk 0:01:01]}  a4 {[%clk 0:02:09]} 27. Ne3 {[%clk 0:01:01]}  Bd3 {[%clk 0:02:09]} 28. Rc1 {[%clk 0:00:53]}  Rb8 {[%clk 0:02:09]} 29. Ra5 {[%clk 0:00:52]}  Ra8 {[%clk 0:02:05]} 30. Rxa8 {[%clk 0:00:45]}  Rxa8 {[%clk 0:02:06]} 31. Nc2 {[%clk 0:00:43]}  Bxc2 {[%clk 0:01:41]} 32. Rxc2 {[%clk 0:00:42]}  Rb8 {[%clk 0:01:42]} 33. g3 {[%clk 0:00:35]}  a3 {[%clk 0:01:38]} 34. c6 {[%clk 0:00:33]}  Rc8 {[%clk 0:01:38]} 35. Rc1 {[%clk 0:00:31]}  Rxc6 {[%clk 0:01:37]} 36. Rb1 {[%clk 0:00:31]}  Rc7 {[%clk 0:01:36]} 37. Kg2 {[%clk 0:00:29]}  g5 {[%clk 0:01:36]} 38. Kf3 {[%clk 0:00:29]}  Kg7 {[%clk 0:01:37]} 39. Ke4 {[%clk 0:00:28]}  Kg6 {[%clk 0:01:37]} 40. Rb8 {[%clk 0:00:23]}  gxf4 {[%clk 0:01:31]} 41. gxf4 {[%clk 0:00:23]}  Kh5 {[%clk 0:01:31]} 42. f5 {[%clk 0:00:20]}  Bg5 {[%clk 0:01:29]} 43. fxe6 {[%clk 0:00:19]}  fxe6 {[%clk 0:01:30]} 44. Re8 {[%clk 0:00:18]}  Rc6 {[%clk 0:01:29]} 45. Ra8 {[%clk 0:00:18]}  Kg4 {[%clk 0:01:30]} 46. Rxa3 {[%clk 0:00:17]}  Kh3 {[%clk 0:01:31]} 47. Ra8 {[%clk 0:00:16]}  Kxh2 {[%clk 0:01:30]} 48. a4 {[%clk 0:00:14]}  h5 {[%clk 0:01:31]} 49. a5 {[%clk 0:00:14]}  Be7 {[%clk 0:01:21]} 50. a6 {[%clk 0:00:14]}  Bc5 {[%clk 0:01:22]} 51. a7 {[%clk 0:00:08]}  Bxd4 {[%clk 0:01:22]} 52. Kxd4 {[%clk 0:00:07]}  Rc7 {[%clk 0:01:22]} 53. Rh8 {[%clk 0:00:06]}  Rxa7 {[%clk 0:01:22]} 54. Rxh5+ {[%clk 0:00:06]}  Kg3 {[%clk 0:01:23]} 55. Kxc4 {[%clk 0:00:03]}  Kg4 {[%clk 0:01:23]} 56. Rh6 {[%clk 0:00:02]}  Kf5 {[%clk 0:01:24]} 57. Rh5+ {[%clk 0:00:03]}  Ke4 {[%clk 0:01:22]} 58. Kc5 {[%clk 0:00:02]}  Rd7 {[%clk 0:01:23]} 59. Kc6 {[%clk 0:00:02]}  Rd8 {[%clk 0:01:22]} 60. c4 {[%clk 0:00:00]}  Kd4 {[%clk 0:01:23]} 0-1


[Site "https://www.chess.com"]

[Event "Titled Tuesday Blitz November 2 2021"]
[White "Sviridov, Valery"]
[Black "Maksimenko, Viktor"]
[WhiteFideId "4120680"]
[BlackFideId "13710478"]
[WhiteElo "2454"]
[BlackElo "2269"]
[Result "1-0"]
[Round "01"]
[TimeControl "180+1"]
[Date "2021.11.02"]
[WhiteClock "0:01:12"]
[BlackClock "0:00:11"]

1. Nf3 {[%clk 0:03:00]}  d5 {[%clk 0:02:59]} 2. g3 {[%clk 0:02:59]}  Nd7 {[%clk 0:02:58]} 3. d4 {[%clk 0:02:57]}  Nb6 {[%clk 0:02:58]} 4. Bg2 {[%clk 0:02:58]}  Nf6 {[%clk 0:02:58]} 5. b3 {[%clk 0:02:57]}  Bf5 {[%clk 0:02:58]} 6. Bb2 {[%clk 0:02:57]}  h6 {[%clk 0:02:57]} 7. Nbd2 {[%clk 0:02:57]}  e6 {[%clk 0:02:57]} 8. O-O {[%clk 0:02:56]}  c6 {[%clk 0:02:57]} 9. c4 {[%clk 0:02:56]}  Be7 {[%clk 0:02:56]} 10. Rc1 {[%clk 0:02:53]}  O-O {[%clk 0:02:53]} 11. e3 {[%clk 0:02:52]}  Nbd7 {[%clk 0:02:52]} 12. Qe2 {[%clk 0:02:52]}  Re8 {[%clk 0:02:52]} 13. Rfd1 {[%clk 0:02:52]}  Bf8 {[%clk 0:02:49]} 14. Ne5 {[%clk 0:02:51]}  Bh7 {[%clk 0:02:47]} 15. e4 {[%clk 0:02:46]}  a5 {[%clk 0:02:43]} 16. a3 {[%clk 0:02:34]}  dxe4 {[%clk 0:02:23]} 17. Nxe4 {[%clk 0:02:35]}  Nxe4 {[%clk 0:02:23]} 18. Bxe4 {[%clk 0:02:35]}  Bxe4 {[%clk 0:02:24]} 19. Qxe4 {[%clk 0:02:35]}  a4 {[%clk 0:02:24]} 20. b4 {[%clk 0:02:33]}  Qc7 {[%clk 0:02:15]} 21. Nf3 {[%clk 0:02:12]}  Nf6 {[%clk 0:02:03]} 22. Qe2 {[%clk 0:02:10]}  Bd6 {[%clk 0:01:44]} 23. Kg2 {[%clk 0:02:09]}  Qd7 {[%clk 0:01:44]} 24. Ne5 {[%clk 0:02:05]}  Qe7 {[%clk 0:01:40]} 25. Re1 {[%clk 0:02:02]}  Red8 {[%clk 0:01:38]} 26. Rcd1 {[%clk 0:02:00]}  Qe8 {[%clk 0:01:33]} 27. Ng4 {[%clk 0:01:58]}  Nxg4 {[%clk 0:01:16]} 28. Qxg4 {[%clk 0:01:58]}  Bf8 {[%clk 0:01:16]} 29. Qf3 {[%clk 0:01:43]}  Qd7 {[%clk 0:01:14]} 30. h4 {[%clk 0:01:42]}  b5 {[%clk 0:01:14]} 31. d5 {[%clk 0:01:39]}  cxd5 {[%clk 0:01:05]} 32. cxd5 {[%clk 0:01:40]}  exd5 {[%clk 0:01:05]} 33. Re5 {[%clk 0:01:41]}  Qc6 {[%clk 0:00:48]} 34. Rexd5 {[%clk 0:01:41]}  Rxd5 {[%clk 0:00:44]} 35. Rxd5 {[%clk 0:01:42]}  Rc8 {[%clk 0:00:40]} 36. h5 {[%clk 0:01:42]}  Qc2 {[%clk 0:00:38]} 37. Bd4 {[%clk 0:01:41]}  Qb3 {[%clk 0:00:37]} 38. Rxb5 {[%clk 0:01:37]}  Rc1 {[%clk 0:00:24]} 39. Be3 {[%clk 0:01:30]}  Ra1 {[%clk 0:00:21]} 40. Rb8 {[%clk 0:01:21]}  Qc4 {[%clk 0:00:19]} 41. Bc5 {[%clk 0:01:13]}  Qf1+ {[%clk 0:00:18]} 42. Kh2 {[%clk 0:01:13]}  Qg1+ {[%clk 0:00:12]} 43. Kh3 {[%clk 0:01:14]}  Qf1+ {[%clk 0:00:11]} 44. Qg2 {[%clk 0:01:12]} 1-0


[Site "https://www.chess.com"]

[Event "Titled Tuesday Blitz November 2 2021"]
[White "Tsydypov, Zhamsaran"]
[Black "Reprintsev, Alexander"]
[WhiteFideId "4108566"]
[BlackFideId "14100541"]
[WhiteElo "2649"]
[BlackElo "2126"]
[Result "1-0"]
[Round "01"]
[TimeControl "180+1"]
[Date "2021.11.02"]
[WhiteClock "0:00:18"]
[BlackClock "0:00:04"]

1. c4 {[%clk 0:02:58]}  e5 {[%clk 0:02:59]} 2. Nc3 {[%clk 0:02:57]}  Nc6 {[%clk 0:02:58]} 3. Nf3 {[%clk 0:02:58]}  Bb4 {[%clk 0:02:56]} 4. Qc2 {[%clk 0:02:56]}  d6 {[%clk 0:02:44]} 5. e3 {[%clk 0:02:56]}  Be6 {[%clk 0:02:32]} 6. a3 {[%clk 0:02:53]}  Bxc3 {[%clk 0:02:30]} 7. Qxc3 {[%clk 0:02:53]}  Nge7 {[%clk 0:02:28]} 8. Be2 {[%clk 0:02:49]}  Qd7 {[%clk 0:02:22]} 9. O-O {[%clk 0:02:49]}  e4 {[%clk 0:02:07]} 10. Ng5 {[%clk 0:02:47]}  d5 {[%clk 0:01:51]} 11. cxd5 {[%clk 0:02:43]}  Qxd5 {[%clk 0:01:47]} 12. Qxg7 {[%clk 0:02:37]}  Rg8 {[%clk 0:01:46]} 13. Nxe6 {[%clk 0:02:32]}  Qxe6 {[%clk 0:01:29]} 14. Qxh7 {[%clk 0:02:31]}  O-O-O {[%clk 0:01:28]} 15. f3 {[%clk 0:02:24]}  f5 {[%clk 0:01:10]} 16. fxe4 {[%clk 0:02:07]}  Rh8 {[%clk 0:01:04]} 17. Qg7 {[%clk 0:02:04]}  Rdg8 {[%clk 0:01:02]} 18. Qc3 {[%clk 0:01:57]}  Qd6 {[%clk 0:01:00]} 19. Rf4 {[%clk 0:01:46]}  Ng6 {[%clk 0:00:56]} 20. e5 {[%clk 0:01:28]}  Nxf4 {[%clk 0:00:46]} 21. exf4 {[%clk 0:01:27]}  Qd4+ {[%clk 0:00:38]} 22. Qxd4 {[%clk 0:01:23]}  Nxd4 {[%clk 0:00:39]} 23. Bd1 {[%clk 0:01:24]}  Rh3 {[%clk 0:00:33]} 24. b4 {[%clk 0:01:12]}  Rd3 {[%clk 0:00:26]} 25. Rb1 {[%clk 0:01:05]}  b5 {[%clk 0:00:24]} 26. Kf2 {[%clk 0:01:02]}  a6 {[%clk 0:00:21]} 27. a4 {[%clk 0:00:57]}  c6 {[%clk 0:00:20]} 28. Ra1 {[%clk 0:00:52]}  Kb7 {[%clk 0:00:20]} 29. Ra3 {[%clk 0:00:46]}  Rxa3 {[%clk 0:00:20]} 30. Bxa3 {[%clk 0:00:46]}  Ne6 {[%clk 0:00:20]} 31. Bb3 {[%clk 0:00:42]}  Re8 {[%clk 0:00:20]} 32. g3 {[%clk 0:00:42]}  bxa4 {[%clk 0:00:19]} 33. Bxa4 {[%clk 0:00:39]}  Rh8 {[%clk 0:00:20]} 34. h4 {[%clk 0:00:36]}  Nd4 {[%clk 0:00:19]} 35. Bb2 {[%clk 0:00:35]}  Nb5 {[%clk 0:00:19]} 36. Bc2 {[%clk 0:00:35]}  Rf8 {[%clk 0:00:18]} 37. e6 {[%clk 0:00:29]}  Kc7 {[%clk 0:00:16]} 38. Be5+ {[%clk 0:00:22]}  Kd8 {[%clk 0:00:16]} 39. h5 {[%clk 0:00:23]}  Ke7 {[%clk 0:00:16]} 40. h6 {[%clk 0:00:24]}  Rd8 {[%clk 0:00:10]} 41. h7 {[%clk 0:00:20]}  Rxd2+ {[%clk 0:00:10]} 42. Ke3 {[%clk 0:00:21]}  Rh2 {[%clk 0:00:10]} 43. Bxf5 {[%clk 0:00:20]}  Nd6 {[%clk 0:00:08]} 44. Bd3 {[%clk 0:00:18]}  c5 {[%clk 0:00:04]} 45. bxc5 {[%clk 0:00:18]}  Ne8 {[%clk 0:00:04]} 46. h8=Q {[%clk 0:00:18]} 1-0


[Site "https://www.chess.com"]

[Event "Titled Tuesday Blitz November 2 2021"]
[White "Zhalmakhanov, Ramazan"]
[Black "Eynullayev, Atilla"]
[WhiteFideId "13706357"]
[BlackFideId "13413570"]
[WhiteElo "2531"]
[BlackElo "1997"]
[Result "1-0"]
[Round "01"]
[TimeControl "180+1"]
[Date "2021.11.02"]
[WhiteClock "0:00:11"]
[BlackClock "0:00:04"]

1. e4 {[%clk 0:03:00]}  e5 {[%clk 0:02:59]} 2. Nf3 {[%clk 0:03:00]}  Nc6 {[%clk 0:03:00]} 3. Bc4 {[%clk 0:03:00]}  Nf6 {[%clk 0:03:00]} 4. d3 {[%clk 0:03:00]}  h6 {[%clk 0:03:00]} 5. c3 {[%clk 0:02:59]}  g5 {[%clk 0:02:59]} 6. d4 {[%clk 0:02:56]}  exd4 {[%clk 0:02:57]} 7. e5 {[%clk 0:02:44]}  Nh7 {[%clk 0:02:57]} 8. O-O {[%clk 0:02:29]}  Bg7 {[%clk 0:02:55]} 9. cxd4 {[%clk 0:02:28]}  O-O {[%clk 0:02:55]} 10. Nc3 {[%clk 0:02:00]}  d6 {[%clk 0:02:54]} 11. exd6 {[%clk 0:01:53]}  Qxd6 {[%clk 0:02:49]} 12. d5 {[%clk 0:01:54]}  Ne7 {[%clk 0:02:34]} 13. Re1 {[%clk 0:01:16]}  Bf5 {[%clk 0:02:05]} 14. Be3 {[%clk 0:01:01]}  a6 {[%clk 0:02:00]} 15. Bd4 {[%clk 0:00:58]}  Bxd4 {[%clk 0:01:55]} 16. Qxd4 {[%clk 0:00:59]}  Bg6 {[%clk 0:01:45]} 17. Ne5 {[%clk 0:00:42]}  Nc6 {[%clk 0:01:35]} 18. Nxc6 {[%clk 0:00:39]}  bxc6 {[%clk 0:01:35]} 19. Rad1 {[%clk 0:00:38]}  Rad8 {[%clk 0:01:30]} 20. Qa7 {[%clk 0:00:33]}  Qb4 {[%clk 0:01:21]} 21. Bb3 {[%clk 0:00:31]}  cxd5 {[%clk 0:01:15]} 22. Nxd5 {[%clk 0:00:29]}  Qa5 {[%clk 0:00:33]} 23. Qd4 {[%clk 0:00:20]}  Rde8 {[%clk 0:00:12]} 24. Ne7+ {[%clk 0:00:17]}  Rxe7 {[%clk 0:00:12]} 25. Rxe7 {[%clk 0:00:18]}  Qf5 {[%clk 0:00:07]} 26. Re5 {[%clk 0:00:13]}  Qf6 {[%clk 0:00:07]} 27. Rd5 {[%clk 0:00:13]}  Qc6 {[%clk 0:00:05]} 28. Rd8 {[%clk 0:00:13]}  Rxd8 {[%clk 0:00:04]} 29. Qxd8+ {[%clk 0:00:13]}  Nf8 {[%clk 0:00:05]} 30. Qd4 {[%clk 0:00:12]}  Kh7 {[%clk 0:00:04]} 31. h4 {[%clk 0:00:12]}  gxh4 {[%clk 0:00:04]} 32. Qxh4 {[%clk 0:00:11]}  Ne6 {[%clk 0:00:05]} 33. Qf6 {[%clk 0:00:11]}  Qe4 {[%clk 0:00:04]} 34. Bxe6 {[%clk 0:00:11]}  Qe5 {[%clk 0:00:04]} 35. Qxe5 {[%clk 0:00:11]} 1-0


[Site "https://www.chess.com"]

[Event "Titled Tuesday Blitz November 2 2021"]
[White "Zhukov, Maksim"]
[Black "Zhigalko, Sergei"]
[WhiteFideId "34181790"]
[BlackFideId "13502956"]
[WhiteElo "1978"]
[BlackElo "2662"]
[Result "0-1"]
[Round "01"]
[TimeControl "180+1"]
[Date "2021.11.02"]
[WhiteClock "0:00:09"]
[BlackClock "0:00:24"]

1. b3 {[%clk 0:02:32]}  e5 {[%clk 0:02:58]} 2. Bb2 {[%clk 0:02:32]}  d6 {[%clk 0:02:59]} 3. g3 {[%clk 0:02:30]}  Nf6 {[%clk 0:02:59]} 4. Bg2 {[%clk 0:02:30]}  Be7 {[%clk 0:02:58]} 5. e3 {[%clk 0:02:31]}  O-O {[%clk 0:02:58]} 6. Ne2 {[%clk 0:02:31]}  c6 {[%clk 0:02:52]} 7. O-O {[%clk 0:02:30]}  Re8 {[%clk 0:02:47]} 8. c4 {[%clk 0:02:26]}  Bf8 {[%clk 0:02:39]} 9. Nbc3 {[%clk 0:02:25]}  d5 {[%clk 0:02:31]} 10. Rc1 {[%clk 0:01:52]}  Bg4 {[%clk 0:02:26]} 11. d3 {[%clk 0:01:37]}  Qd7 {[%clk 0:02:18]} 12. Qd2 {[%clk 0:01:35]}  Na6 {[%clk 0:02:16]} 13. f4 {[%clk 0:01:30]}  dxc4 {[%clk 0:01:50]} 14. bxc4 {[%clk 0:01:28]}  e4 {[%clk 0:01:39]} 15. d4 {[%clk 0:00:58]}  Nb4 {[%clk 0:01:39]} 16. a3 {[%clk 0:00:42]}  Nd3 {[%clk 0:01:38]} 17. Nxe4 {[%clk 0:00:39]}  Nxe4 {[%clk 0:01:16]} 18. Qxd3 {[%clk 0:00:38]}  Nc5 {[%clk 0:01:17]} 19. Qc2 {[%clk 0:00:30]}  Rxe3 {[%clk 0:01:15]} 20. dxc5 {[%clk 0:00:22]}  Rxe2 {[%clk 0:01:10]} 21. Qc3 {[%clk 0:00:22]}  Rd8 {[%clk 0:00:59]} 22. Rfe1 {[%clk 0:00:16]}  Bxc5+ {[%clk 0:00:23]} 23. Kh1 {[%clk 0:00:16]}  Bf8 {[%clk 0:00:23]} 24. Rxe2 {[%clk 0:00:14]}  Bxe2 {[%clk 0:00:24]} 25. Re1 {[%clk 0:00:13]}  Qd2 {[%clk 0:00:23]} 26. Qxd2 {[%clk 0:00:09]}  Rxd2 {[%clk 0:00:24]} 0-1


[Site "https://www.chess.com"]

[Event "Titled Tuesday Blitz November 2 2021"]
[White "Zubov, Alexander"]
[Black "Khabinets, Ivan"]
[WhiteFideId "14109409"]
[BlackFideId "14115980"]
[WhiteElo "2685"]
[BlackElo "2114"]
[Result "1-0"]
[Round "01"]
[TimeControl "180+1"]
[Date "2021.11.02"]
[WhiteClock "0:01:39"]
[BlackClock "0:01:41"]

1. d4 {[%clk 0:02:57]}  Nf6 {[%clk 0:02:59]} 2. c4 {[%clk 0:02:57]}  e6 {[%clk 0:03:00]} 3. Nf3 {[%clk 0:02:56]}  d5 {[%clk 0:02:59]} 4. Nc3 {[%clk 0:02:55]}  a6 {[%clk 0:02:59]} 5. cxd5 {[%clk 0:02:55]}  exd5 {[%clk 0:03:00]} 6. Bf4 {[%clk 0:02:55]}  Bd6 {[%clk 0:02:59]} 7. Bg3 {[%clk 0:02:54]}  O-O {[%clk 0:02:59]} 8. e3 {[%clk 0:02:54]}  Be6 {[%clk 0:02:59]} 9. Bd3 {[%clk 0:02:53]}  c6 {[%clk 0:02:57]} 10. Qc2 {[%clk 0:02:51]}  h6 {[%clk 0:02:56]} 11. Ne5 {[%clk 0:02:48]}  Nh5 {[%clk 0:02:50]} 12. f4 {[%clk 0:02:40]}  Qc7 {[%clk 0:02:05]} 13. O-O {[%clk 0:02:17]}  Nxg3 {[%clk 0:01:58]} 14. hxg3 {[%clk 0:02:16]}  Nd7 {[%clk 0:01:58]} 15. f5 {[%clk 0:01:59]}  Bxe5 {[%clk 0:01:43]} 16. fxe6 {[%clk 0:01:42]}  Bxg3 {[%clk 0:01:42]} 17. exd7 {[%clk 0:01:41]}  Bh2+ {[%clk 0:01:43]} 18. Kh1 {[%clk 0:01:41]}  Qg3 {[%clk 0:01:43]} 19. Rf3 {[%clk 0:01:41]}  Qg5 {[%clk 0:01:41]} 20. Kxh2 {[%clk 0:01:39]} 1-0


[Site "https://www.chess.com"]